bitfinex/quotes_ETHUSD_20250827
["timestamp","ask_amount","ask_price","bid_price","bid_amount"]
[1756280966542,4.4515,4587.7,4587.6,1e-08]
[1756280967060,14.4515,4587.7,4587.6,1e-08]
[1756280967232,16.63124148,4587.7,4587.6,1e-08]
[1756280967432,14.4515,4587.7,4587.6,1e-08]
[1756280968157,4.4515,4587.7,4587.6,1e-08]
[1756280969254,6.63124148,4587.7,4587.6,1e-08]
[1756280969455,2.48934148,4587.7,4587.6,1e-08]
[1756280969759,5.89274148,4587.7,4587.6,1e-08]
[1756280969959,0.1088,4587.9,4587.6,0.30180001]
[1756280970159,0.3064,4587.7,4587.6,1e-08]
[1756280970328,2.89886148,4587.7,4587.6,1e-08]
[1756280970536,2.95984148,4587.7,4587.6,1e-08]
[1756280972044,12.95984148,4587.7,4587.6,1e-08]
[1756280973155,6.67284148,4587.7,4587.6,1e-08]
[1756280973332,5.17978899,4587.6,4587.1,1e-08]
[1756280973532,2.18007412,4587.0,4586.8,0.02]
[1756280973727,6.20452165,4586.9,4586.8,0.02]
[1756280973931,16.67822165,4586.9,4586.8,0.02]
[1756280974533,19.67822165,4586.9,4586.8,1e-08]
[1756280975449,19.67822165,4586.9,4584.8,0.02]
[1756280975450,5.17970195,4586.1,4584.8,0.02]
[1756280975658,5.18059704,4585.9,4584.8,0.02]
[1756280975888,9.20899704,4585.9,4584.8,0.02]
[1756280976054,19.68269704,4585.9,4584.8,0.02]
[1756280977864,20.0240026,4585.9,4584.8,0.02]
[1756280978357,20.13362231,4585.9,4584.8,0.02]
[1756280979060,20.13262231,4585.9,4584.8,0.02]
[1756280980057,17.95202527,4585.9,4584.8,0.02]
[1756280980260,5.1807397,4585.6,4584.8,0.02]
[1756280980455,2.18107265,4584.9,4584.8,0.02]
[1756280980676,10.88347265,4584.9,4584.8,0.02]
[1756280980875,11.35717265,4584.9,4584.8,0.02]
[1756280981067,11.35817265,4584.9,4584.8,0.02]
[1756280981267,11.69953136,4584.9,4584.8,0.02]
[1756280981677,1.677,4584.9,4584.8,0.3218]
[1756280981877,5.396,4584.9,4584.8,0.3218]
[1756280983967,5.5048,4584.9,4584.8,0.3218]
[1756280984582,5.5048,4584.9,4584.8,0.02]
[1756280984760,10.0,4585.4,4584.9,5.18107265]
[1756280984964,9.5485,4585.4,4585.3,2.48268238]
[1756280985159,1.677,4585.6,4585.5,2.18078726]
[1756280985682,0.02,4586.8,4586.7,2.18021671]
[1756280985876,1.697,4586.8,4586.7,2.18021671]
[1756280986052,1.697,4586.8,4586.7,5.91626721]
[1756280986579,3.474,4586.8,4586.7,5.91626721]
[1756280986887,1.697,4586.8,4586.7,5.91626721]
[1756280987854,3.473,4586.8,4585.3,3.0]
[1756280988060,1.697,4586.8,4585.3,3.0]
[1756280988275,1.697,4586.8,4586.7,2.18021671]
[1756280989458,3.476,4586.8,4586.7,2.18021671]
[1756280990297,5.006,4586.8,4586.7,2.18021671]
[1756280990497,5.45,4586.8,4586.7,5.91626891]
[1756280990664,5.45,4586.8,4586.7,5.18021671]
[1756280990855,1.697,4586.8,4586.7,5.18021671]
[1756280991250,1.697,4586.8,4586.7,5.38283633]
[1756280991452,1.697,4586.8,4586.7,6.20469969]
[1756280991757,0.02,4587.8,4587.7,2.17974148]
[1756280991972,1.697,4587.8,4587.7,2.3823611]
[1756280992182,3.646,4587.8,4587.7,2.3823611]
[1756280992385,6.2301,4587.8,4586.4,0.655514]
[1756280992586,0.4737,4587.7,4586.5,0.20265252]
[1756280992804,0.3064,4586.6,4586.5,2.18031178]
[1756280992968,0.4737,4587.0,4586.6,0.001]
[1756280993157,1.677,4586.9,4586.6,0.001]
[1756280993581,0.3064,4586.7,4586.6,0.001]
[1756280993992,4.0644,4586.7,4586.6,0.001]
[1756280994190,4.5381,4586.7,4586.6,0.001]
[1756280994404,4.5371,4586.7,4586.6,2.18126424]
[1756280994608,3.757,4586.7,4586.6,0.001]
[1756280994919,0.1088,4586.7,4586.6,2.18125631]
[1756280995206,4.3385,4586.7,4586.6,0.001]
[1756280995585,4.6449,4586.7,4586.6,0.001]
[1756280996115,4.6449,4586.7,4586.6,2.18126424]
[1756280996272,1.677,4586.9,4586.8,2.18016918]
[1756280996472,3.402,4586.9,4586.8,2.38296861]
[1756280996672,1.677,4586.9,4586.8,2.38296861]
[1756280996906,1.677,4586.9,4586.8,2.49176861]
[1756280997086,1.677,4587.2,4587.1,5.18002659]
[1756280997289,1.677,4587.2,4587.1,5.49162602]
[1756280997508,3.542,4587.2,4587.1,5.49162602]
[1756280997686,5.307,4587.2,4587.1,5.49162602]
[1756280997886,5.436,4587.2,4587.1,5.49162602]
[1756280998116,1.677,4587.2,4587.1,6.4056291]
[1756280998309,3.535,4587.2,4587.1,6.4056291]
[1756280998619,5.3,4587.2,4587.1,6.4056291]
[1756280998815,5.435,4587.2,4587.1,6.4056291]
[1756280999598,5.434,4587.2,4587.1,6.4056291]
[1756280999790,5.4322,4587.2,4587.1,6.4056291]
[1756281000193,1.6762,4587.2,4587.1,6.4056291]
[1756281000592,3.5322,4587.2,4587.1,6.4056291]
[1756281000922,5.4312,4587.2,4587.1,6.40541043]
[1756281001300,5.4312,4587.2,4587.1,6.40538811]
[1756281001509,5.4312,4587.2,4587.1,6.20282967]
[1756281001708,5.4312,4587.2,4587.1,6.40538812]
[1756281002100,5.4292,4587.2,4587.1,6.40538812]
[1756281002722,1e-08,4587.8,4587.7,2.17974148]
[1756281002905,1e-08,4587.8,4587.7,5.70893997]
[1756281003104,1e-08,4587.8,4587.7,5.70887505]
[1756281003893,0.45380001,4587.8,4587.7,2.3821009]
[1756281004093,0.45380001,4587.8,4587.7,2.17974148]
[1756281004489,1e-08,4587.8,4587.7,2.17974148]
[1756281005028,1.86300001,4587.8,4587.7,2.49088255]
[1756281005329,1e-08,4587.8,4587.7,2.49088255]
[1756281005486,3.75800001,4587.8,4587.7,6.25795413]
[1756281006025,3.76300001,4587.8,4587.7,6.25795413]
[1756281006503,3.76200001,4587.8,4587.7,6.25795413]
[1756281006820,3.76200001,4587.8,4587.7,5.49088255]
[1756281007035,4.50260001,4587.8,4587.7,0.31114107]
[1756281007236,4.50260001,4587.8,4587.7,0.1088]
[1756281007615,4.50260001,4587.8,4587.6,2.1797815]
[1756281007929,0.39560001,4587.8,4587.7,2.17974148]
[1756281008133,1e-08,4587.8,4587.7,2.17974148]
[1756281008315,3.76500001,4587.8,4587.7,2.17974148]
[1756281008849,3.76500001,4587.8,4587.7,2.382085]
[1756281009835,1e-08,4587.8,4587.7,2.382085]
[1756281010042,3.76500001,4587.8,4587.7,2.38218845]
[1756281010538,4.50560001,4587.8,4587.7,2.38218845]
[1756281010745,4.21580001,4587.8,4587.7,2.38218845]
[1756281011039,4.50260001,4587.8,4587.7,2.38218845]
[1756281012111,4.50460001,4587.8,4587.7,2.38218845]
[1756281012820,4.50460001,4587.8,4587.7,2.17974148]
[1756281013025,4.21480001,4587.8,4587.7,2.38277104]
[1756281013221,3.76100001,4587.8,4587.7,2.38277104]
[1756281013718,0.00200001,4587.8,4587.7,2.38277104]
[1756281013917,3.76100001,4587.8,4587.7,2.83903153]
[1756281014936,0.00200001,4587.8,4587.7,0.68108746]
[1756281015128,0.00200001,4587.8,4587.7,0.31182956]
[1756281015342,0.284,4587.8,4587.7,0.20302956]
[1756281015544,0.284,4587.8,4587.7,0.31182956]
[1756281017343,1.0246,4587.8,4587.7,0.20302956]
[1756281017549,1.1334,4587.8,4587.7,0.20302956]
[1756281018045,1.24674,4587.8,4587.7,0.20302956]
[1756281019430,1.24674,4587.8,4587.1,0.001]
[1756281019629,1.13794,4587.8,4587.2,0.20382427]
[1756281019828,1.13794,4587.8,4587.3,0.20382427]
[1756281020028,0.1088,4587.4,4587.1,0.001]
[1756281020233,1.676,4587.3,4587.1,0.001]
[1756281020433,0.46528,4587.2,4587.1,0.001]
[1756281020847,0.91908,4587.2,4587.1,0.001]
[1756281024160,0.91828,4587.2,4587.1,0.001]
[1756281024961,4.67428,4587.2,4587.1,0.001]
[1756281025541,7.67428,4587.2,4587.1,0.001]
[1756281027444,3.91828,4587.2,4587.1,0.001]
[1756281027646,7.67028,4587.2,4587.1,0.001]
[1756281030644,14.74947999,4587.2,4587.1,0.001]
[1756281031252,15.09069487,4587.2,4587.1,0.001]
[1756281032469,11.16741487,4587.2,4587.1,0.001]
[1756281032670,10.82619999,4587.2,4587.1,0.001]
[1756281035254,7.07919999,4587.2,4587.1,0.001]
[1756281035456,10.82819999,4587.2,4587.1,0.001]
[1756281035651,7.07919999,4587.2,4587.1,0.001]
[1756281035854,10.82819999,4587.2,4587.1,0.001]
[1756281037492,1.676,4587.3,4587.1,0.001]
[1756281037695,3.748,4587.2,4587.1,0.001]
[1756281038367,3.746,4587.2,4587.1,0.001]
[1756281039168,1.676,4587.3,4587.1,0.001]
[1756281039399,3.747,4587.2,4587.1,0.001]
[1756281040092,1.676,4587.3,4587.1,0.001]
[1756281040403,3.746,4587.2,4587.1,0.001]
[1756281040554,1.676,4587.3,4587.1,0.001]
[1756281040975,3.745,4587.2,4587.1,0.001]
[1756281041293,1.676,4587.3,4587.1,0.001]
[1756281041471,3.745,4587.2,4587.1,0.001]
[1756281041883,1.676,4587.3,4587.1,0.001]
[1756281042064,1.785,4587.2,4587.1,0.001]
[1756281042394,3.419,4587.2,4587.1,0.001]
[1756281042592,3.419,4587.2,4587.1,0.1098]
[1756281042902,3.419,4587.2,4587.1,0.001]
[1756281044014,3.5278,4587.2,4587.1,0.001]
[1756281045087,0.1088,4587.2,4587.1,0.001]
[1756281045283,3.744,4587.2,4587.1,0.001]
[1756281045915,1.676,4587.3,4587.1,0.001]
[1756281046218,3.744,4587.2,4587.1,0.001]
[1756281046804,1.676,4587.3,4587.2,5.17997907]
[1756281047035,1.677,4587.6,4587.5,2.17983651]
[1756281047329,0.1108,4587.8,4587.7,2.17974148]
[1756281047491,1.677,4589.0,4588.2,2.17950394]
[1756281047687,3.586,4589.2,4589.1,2.17903705]
[1756281047895,0.3583,4589.7,4589.2,2.39693272]
[1756281048211,1.697,4589.8,4589.7,2.17879164]
[1756281048715,1.6962,4589.8,4589.7,2.17879164]
[1756281048923,5.4432,4589.8,4589.7,2.17879164]
[1756281050228,1.6962,4589.8,4589.7,2.17879164]
[1756281050391,5.4412,4589.8,4589.7,2.17879164]
[1756281052624,1.696,4590.8,4590.2,2.17851926]
[1756281052830,1.8048,4590.8,4590.7,2.17831703]
[1756281053032,4.3728,4590.8,4590.7,2.17831703]
[1756281053408,2.5323,4590.8,4590.7,2.17831703]
[1756281053605,6.2723,4590.8,4590.7,2.17831703]
[1756281054293,5.8433,4590.8,4590.7,2.17831703]
[1756281054627,6.2743,4590.8,4590.7,2.17831703]
[1756281055421,2.5323,4590.8,4590.7,2.17831703]
[1756281055712,2.2358,4590.8,4590.7,2.17831703]
[1756281055919,5.3268,4590.8,4590.7,2.17831703]
[1756281056629,1.8048,4590.8,4590.7,2.17831703]
[1756281056792,5.5448,4590.8,4590.7,2.17831703]
[1756281056995,5.436,4590.8,4590.7,2.17831703]
[1756281057195,5.436,4590.8,4590.7,2.61398993]
[1756281057415,1.696,4590.8,4590.7,2.61398993]
[1756281057619,5.436,4590.8,4590.7,2.61398993]
[1756281058010,5.435,4590.8,4590.7,2.61398993]
[1756281058635,1.696,4590.8,4590.7,2.61398993]
[1756281058831,5.435,4590.8,4590.7,2.61398993]
[1756281059009,5.434,4590.8,4590.7,2.61398993]
[1756281059729,3.0,4592.6,4592.4,0.7642]
[1756281060035,8.7237,4592.5,4592.4,0.7642]
[1756281060719,8.7227,4592.5,4592.4,0.7642]
[1756281061408,1.9867,4592.5,4592.4,0.7642]
[1756281061732,13.27529999,4592.5,4592.4,0.7642]
[1756281062241,5.301,4592.1,4590.5,2.17839167]
[1756281062535,0.3107,4590.6,4590.1,2.17857455]
[1756281062736,5.8974,4590.5,4588.9,0.4312]
[1756281063033,0.3107,4589.9,4588.9,0.4312]
[1756281063211,4.0587,4589.9,4588.9,0.4312]
[1756281063412,0.3107,4589.9,4588.9,0.4312]
[1756281063734,2.336,4589.9,4589.8,0.3347]
[1756281063936,2.336,4589.9,4589.8,0.3147]
[1756281065110,1.675,4590.5,4589.8,0.3147]
[1756281065315,3.748,4590.4,4589.8,0.3147]
[1756281066117,3.748,4590.4,4588.8,0.59627767]
[1756281066418,0.3107,4589.9,4588.9,0.12100777]
[1756281066614,3.748,4589.8,4588.9,0.12100777]
[1756281067714,0.4734,4590.4,4588.9,0.55220777]
[1756281067914,3.747,4590.3,4588.9,0.55220777]
[1756281068115,0.4734,4590.4,4588.9,0.55220777]
[1756281068621,2.04,4590.3,4588.9,0.55220777]
[1756281069235,0.4734,4590.4,4588.9,0.55220777]
[1756281069420,3.745,4590.2,4588.9,0.55220777]
[1756281070617,3.743,4590.1,4588.9,0.55220777]
[1756281071112,0.4734,4590.4,4588.9,0.55220777]
[1756281071317,4.2164,4590.4,4589.0,0.45299123]
[1756281071649,1.675,4590.5,4590.3,0.3147]
[1756281071946,1.675,4590.5,4589.5,0.4312]
[1756281072327,2.398,4591.1,4590.4,0.3147]
[1756281072523,2.398,4591.2,4590.4,0.3147]
[1756281072934,0.3107,4590.5,4589.1,0.4312]
[1756281073140,0.3099,4590.5,4589.2,0.22272078]
[1756281073738,0.4734,4590.4,4589.2,0.22272078]
[1756281073946,3.742,4590.4,4589.2,0.22272078]
[1756281074752,0.4734,4590.3,4589.2,0.22272078]
[1756281074937,0.4734,4590.3,4589.3,0.32227208]
[1756281075937,0.4734,4590.3,4589.0,3.0]
[1756281075938,0.3107,4589.4,4588.9,0.12100777]
[1756281076137,0.4734,4589.3,4588.9,0.12100777]
[1756281076768,0.4734,4589.3,4588.2,3.432]
[1756281077105,0.3107,4588.9,4588.8,0.02]
[1756281077573,0.4734,4592.1,4589.1,0.99999999]
[1756281077779,1.8574,4592.0,4589.2,4.49088896]
[1756281077965,1.8574,4592.0,4589.4,0.66]
[1756281078128,1.8574,4592.0,4589.6,0.66]
[1756281078330,1.8574,4592.0,4589.8,0.66]
[1756281078556,1.384,4592.0,4589.9,0.55748]
[1756281078729,0.4734,4591.9,4589.9,0.4468]
[1756281078931,0.837,4591.8,4589.9,0.4468]
[1756281079131,0.4734,4591.7,4589.9,0.4468]
[1756281079335,1.07,4591.6,4590.0,0.13246649]
[1756281079629,1.741,4591.5,4590.1,0.4468]
[1756281079837,3.416,4591.4,4590.0,0.11068]
[1756281080082,4.5264,4591.3,4589.7,0.4468]
[1756281080232,1.675,4591.2,4589.7,0.4468]
[1756281081686,3.751,4591.1,4589.7,0.4468]
[1756281082259,3.75,4591.0,4589.7,0.4468]
[1756281083588,1.675,4591.2,4589.7,1.101665]
[1756281083787,1.675,4591.2,4589.8,0.1101665]
[1756281083986,1.675,4591.2,4589.8,0.5569665]
[1756281084256,2.04,4591.1,4589.8,0.5569665]
[1756281085111,1.677,4591.2,4589.8,0.5569665]
[1756281085269,3.748,4591.0,4589.8,0.5569665]
[1756281085586,3.746,4590.9,4589.9,0.12118315]
[1756281085967,0.4734,4591.0,4589.9,0.12118315]
[1756281086271,2.042,4590.9,4589.9,0.12118315]
[1756281086576,3.745,4590.8,4589.9,0.77600015]
[1756281086777,0.4734,4591.0,4589.9,0.654817]
[1756281087295,1.677,4591.2,4589.9,0.654817]
[1756281087296,0.2917,4590.0,4589.9,0.654817]
[1756281088471,0.7224,4590.0,4589.9,0.654817]
[1756281090513,0.7224,4590.0,4588.8,5.258]
[1756281090669,0.2917,4590.0,4588.9,3.5258]
[1756281090860,0.4307,4589.9,4589.4,0.655031]
[1756281091067,0.4307,4589.8,4589.4,0.655031]
[1756281091263,1.675,4590.2,4589.4,0.655031]
[1756281091469,3.744,4589.8,4589.4,0.655031]
[1756281091667,4.1747,4589.8,4589.4,0.655031]
[1756281091894,3.744,4589.8,4589.4,0.655031]
[1756281092121,0.4307,4589.7,4589.4,0.655031]
[1756281094263,0.4307,4589.6,4589.4,0.655031]
[1756281094880,3.741,4589.9,4589.4,0.655031]
[1756281095198,1.675,4590.2,4589.4,0.655031]
[1756281095505,0.4307,4589.8,4589.4,0.655031]
[1756281095905,0.2917,4589.5,4589.4,0.655031]
[1756281096109,0.7224,4589.5,4589.4,0.655031]
[1756281097206,0.7224,4589.5,4588.9,3.5258]
[1756281097399,0.7224,4589.5,4589.0,0.87838]
[1756281097597,0.4299,4589.4,4589.0,0.87838]
[1756281097970,3.738,4589.9,4589.0,0.87838]
[1756281098176,0.2917,4589.1,4588.8,0.021]
[1756281098378,3.737,4589.0,4588.8,0.021]
[1756281098675,0.2917,4589.1,4588.8,0.021]
[1756281098873,0.2917,4588.9,4588.8,0.021]
[1756281099673,0.7224,4588.9,4588.8,0.021]
[1756281100810,0.8312,4588.9,4588.8,0.021]
[1756281103608,3.3242,4588.9,4588.8,0.021]
[1756281104203,0.8312,4588.9,4588.8,0.021]
[1756281104407,1.7838,4589.2,4588.8,0.021]
[1756281104626,0.2917,4588.9,4588.8,0.1298]
[1756281104800,0.7224,4588.9,4588.8,0.021]
[1756281105432,0.2917,4588.9,4588.8,0.021]
[1756281105923,3.749,4589.0,4588.8,0.4343]
[1756281106104,1.675,4589.2,4588.8,0.1298]
[1756281106410,0.4005,4588.9,4588.8,0.021]
[1756281106628,2.5065,4588.9,4588.8,0.021]
[1756281106924,4.5802,4588.9,4588.8,0.021]
[1756281107079,0.8312,4588.9,4588.8,0.021]
[1756281107411,0.4005,4588.9,4588.8,0.021]
[1756281107618,2.7835,4588.9,4588.8,0.021]
[1756281107784,0.8312,4588.9,4588.8,0.021]
[1756281108115,3.2132,4588.9,4588.8,0.021]
[1756281108681,4.5782,4588.9,4588.8,0.021]
[1756281108904,0.8312,4588.9,4588.8,0.021]
[1756281109208,4.5782,4588.9,4588.8,0.021]
[1756281109378,4.5772,4588.9,4588.8,0.021]
[1756281110197,0.8312,4588.9,4588.8,0.021]
[1756281110394,4.5772,4588.9,4588.8,0.021]
[1756281111414,0.1088,4588.9,4588.8,0.021]
[1756281111610,4.1455,4588.9,4588.8,0.021]
[1756281111816,4.5762,4588.9,4588.8,0.021]
[1756281112015,0.8312,4588.9,4588.8,0.021]
[1756281112218,4.5752,4588.9,4588.8,0.021]
[1756281113221,0.8312,4588.9,4588.8,0.021]
[1756281113627,3.3262,4588.9,4588.8,0.021]
[1756281113927,0.8312,4588.9,4588.8,0.021]
[1756281114125,4.5732,4588.9,4588.8,0.021]
[1756281115390,2.301,4588.8,4588.3,0.1298]
[1756281115593,2.301,4588.8,4587.0,0.001]
[1756281115594,0.021,4588.7,4587.0,0.001]
[1756281115791,0.2917,4587.9,4587.0,0.001]
[1756281115985,1.9677,4587.9,4587.0,0.001]
[1756281116192,6.1464,4587.9,4587.0,0.001]
[1756281117129,2.3984,4587.9,4587.0,0.001]
[1756281117323,6.1454,4587.9,4587.0,0.001]
[1756281117494,2.3984,4587.9,4587.0,0.001]
[1756281117693,6.1454,4587.9,4587.0,0.001]
[1756281118094,2.3984,4587.9,4587.0,0.001]
[1756281118324,6.1444,4587.9,4587.0,0.001]
[1756281118540,2.3984,4587.9,4587.0,0.001]
[1756281118846,6.1434,4587.9,4587.0,0.001]
[1756281119031,2.3984,4587.9,4587.0,0.001]
[1756281119435,6.1434,4587.9,4587.0,0.001]
[1756281120440,6.1424,4587.9,4587.0,0.001]
[1756281120641,6.1414,4587.9,4587.0,0.001]
[1756281121120,16.02490646,4587.9,4587.0,0.001]
[1756281121844,19.76890646,4587.9,4587.0,0.001]
[1756281122020,16.02410646,4587.9,4587.0,0.001]
[1756281122436,6.1416,4587.9,4587.0,0.001]
[1756281122812,2.3976,4587.9,4587.0,0.001]
[1756281123811,6.1406,4587.9,4587.0,0.001]
[1756281124322,6.1406,4587.9,4587.8,0.021]
[1756281124711,25.06810646,4587.9,4587.3,0.001]
[1756281124912,3.0,4587.8,4587.3,0.001]
[1756281125142,16.02410646,4587.9,4587.3,0.001]
[1756281125344,0.2931,4587.6,4587.3,0.001]
[1756281125545,0.4019,4587.6,4587.3,0.001]
[1756281126046,0.8722,4587.6,4587.3,0.001]
[1756281126363,0.7634,4587.6,4587.3,0.001]
[1756281126570,4.6162,4587.6,4587.3,0.001]
[1756281127220,0.8722,4587.6,4587.3,0.001]
[1756281127416,3.8518,4587.6,4587.3,0.001]
[1756281127733,4.6152,4587.6,4587.3,0.001]
[1756281128049,0.8722,4587.6,4587.3,0.001]
[1756281128547,4.6152,4587.6,4587.3,0.001]
[1756281128713,4.5064,4587.6,4587.3,0.001]
[1756281128920,4.6152,4587.6,4587.3,0.001]
[1756281129931,0.1088,4587.6,4587.5,0.3091]
[1756281130118,1.966,4587.6,4587.5,0.3091]
[1756281130625,1.676,4587.9,4587.5,0.3091]
[1756281130839,3.747,4587.6,4587.5,0.3091]
[1756281132015,1.676,4587.9,4587.5,0.3091]
[1756281132249,3.747,4587.8,4587.5,0.3091]
[1756281132451,0.2931,4587.6,4587.5,0.001]
[1756281132820,0.7634,4587.6,4587.5,0.001]
[1756281133858,18.13590646,4587.6,4587.5,0.001]
[1756281135143,4.5094,4587.6,4587.5,0.001]
[1756281138452,9.7504,4587.6,4587.5,0.001]
[1756281138655,26.37690646,4587.6,4587.5,0.001]
[1756281139557,28.67590646,4587.6,4587.5,0.001]
[1756281139957,29.0170928,4587.6,4587.5,0.001]
[1756281140263,29.1258928,4587.6,4587.5,0.001]
[1756281140858,29.1238928,4587.6,4587.5,0.001]
[1756281141267,2.299,4587.4,4587.3,0.001]
[1756281141447,2.299,4587.2,4587.0,0.001]
[1756281141637,9.4439,4587.2,4587.0,0.001]
[1756281141837,9.9142,4587.2,4587.0,0.001]
[1756281145439,9.9142,4587.2,4586.8,0.021]
[1756281145440,2.299,4587.1,4586.8,0.021]
[1756281145679,18.92550646,4586.9,4586.8,0.021]
[1756281145966,19.21860646,4586.9,4586.8,0.021]
[1756281146173,23.53670646,4586.9,4586.8,0.021]
[1756281146574,19.79690646,4586.9,4586.8,0.021]
[1756281146874,23.53490646,4586.9,4586.8,0.021]
[1756281147076,2.299,4586.7,4584.8,0.02]
[1756281147262,2.299,4586.5,4585.2,0.4374]
[1756281147440,5.6007,4586.3,4585.2,0.4374]
[1756281147635,6.06461086,4586.3,4585.2,0.4374]
[1756281147841,0.46391086,4586.3,4586.2,0.2899]
[1756281148039,2.299,4586.7,4586.2,0.2899]
[1756281148461,2.7464,4586.7,4586.2,0.2899]
[1756281148662,3.742,4586.6,4586.2,0.2899]
[1756281148863,2.7464,4586.7,4586.2,0.2899]
[1756281149181,0.4474,4586.6,4586.2,0.001]
[1756281149345,3.741,4586.5,4586.2,0.001]
[1756281150486,0.3017,4586.3,4586.2,0.001]
[1756281150650,4.0417,4586.3,4586.2,0.001]
[1756281150845,5.299,4586.7,4586.2,0.2899]
[1756281151049,2.018221,4587.0,4586.3,0.4374]
[1756281151253,3.74,4586.9,4586.3,0.4374]
[1756281151463,2.018221,4587.0,4586.3,0.4374]
[1756281151667,3.742,4586.9,4586.3,0.4374]
[1756281151982,1.677,4587.0,4586.8,0.2889]
[1756281152194,3.741,4586.8,4586.2,0.001]
[1756281153661,3.741,4586.7,4586.2,0.001]
[1756281154149,3.74,4586.6,4586.2,0.001]
[1756281156758,2.299,4586.9,4586.2,0.001]
[1756281156964,3.737,4586.8,4586.2,0.001]
[1756281157263,0.1088,4586.3,4586.2,0.001]
[1756281157588,3.8458,4586.3,4586.2,0.001]
[1756281157789,3.8458,4586.3,4586.2,0.2899]
[1756281160095,4.5949,4586.3,4586.2,0.001]
[1756281160598,9.7851,4586.3,4584.8,0.02]
[1756281160796,5.299,4585.2,4584.2,0.001]
[1756281160982,5.299,4585.0,4584.2,0.001]
[1756281161186,2.6007,4584.7,4584.2,0.001]
[1756281161505,9.3397,4584.7,4584.2,0.001]
[1756281161680,2.299,4584.5,4584.2,0.001]
[1756281161884,5.299,4584.3,4584.2,0.001]
[1756281162204,5.6007,4584.3,4584.2,0.001]
[1756281162385,5.94210959,4584.3,4584.2,0.001]
[1756281162697,6.38950959,4584.3,4584.2,0.001]
[1756281163684,10.12650959,4584.3,4584.2,0.001]
[1756281164602,7.82750959,4584.3,4584.2,0.001]
[1756281165098,7.9382197,4584.3,4584.2,0.001]
[1756281165677,4.2012197,4584.3,4584.2,0.001]
[1756281165879,7.9362197,4584.3,4584.2,0.001]
[1756281166401,7.59481011,4584.3,4584.2,0.001]
[1756281167098,3.85981011,4584.3,4584.2,0.001]
[1756281167321,7.59481011,4584.3,4584.2,0.001]
[1756281167671,3.41241011,4584.3,4584.2,0.001]
[1756281167874,7.14541011,4584.3,4584.2,0.001]
[1756281168204,7.59281011,4584.3,4584.2,0.001]
[1756281169768,7.93421518,4584.3,4584.2,0.001]
[1756281169973,4.20121518,4584.3,4584.2,0.001]
[1756281170306,7.93221518,4584.3,4584.2,0.001]
[1756281170509,8.13474003,4584.3,4584.2,0.001]
[1756281170679,8.24354003,4584.3,4584.2,0.001]
[1756281171067,8.24274003,4584.3,4584.2,0.001]
[1756281171608,8.24271435,4584.3,4584.2,0.001]
[1756281172175,8.04021518,4584.3,4584.2,0.001]
[1756281172880,8.24269026,4584.3,4584.2,0.001]
[1756281173209,8.04021518,4584.3,4584.2,0.001]
[1756281176276,8.04021518,4584.3,4583.2,0.001]
[1756281176277,10.54155118,4584.3,4583.2,0.001]
[1756281176503,3.0,4583.8,4583.2,0.001]
[1756281176683,0.1088,4583.3,4583.2,0.001]
[1756281177008,7.1385,4583.3,4583.2,0.001]
[1756281177211,3.4105,4583.3,4583.2,0.001]
[1756281177409,7.5805,4583.3,4583.2,0.001]
[1756281177611,0.1088,4583.3,4583.2,0.7393]
[1756281177811,1.678,4584.0,4583.2,0.7393]
[1756281178012,1.655,4583.9,4583.2,0.2996]
[1756281178900,1.678,4584.0,4583.2,0.2996]
[1756281179310,1.641,4583.9,4583.2,0.2996]
[1756281181379,1.678,4584.0,4583.2,0.2996]
[1756281181781,2.066,4583.9,4583.2,0.2996]
[1756281183517,3.739,4583.8,4583.2,0.2996]
[1756281183908,1.678,4584.0,4583.2,0.2996]
[1756281184219,1.848,4583.9,4583.2,0.2996]
[1756281186015,3.592,4583.8,4583.2,0.2996]
[1756281186846,1.678,4584.0,4583.2,0.2996]
[1756281187051,3.736,4583.7,4583.2,0.2996]
[1756281187689,1.678,4584.0,4583.6,0.1088]
[1756281188014,3.735,4583.9,4583.6,0.1088]
[1756281189221,1.678,4584.0,4583.6,0.1088]
[1756281189418,3.734,4583.9,4583.6,0.1088]
[1756281189731,2.01,4583.8,4583.6,0.1088]
[1756281190922,2.01,4583.8,4583.2,0.001]
[1756281191121,0.1088,4583.5,4583.2,0.001]
[1756281194434,0.5508,4583.5,4583.2,0.001]
[1756281194932,0.3101,4583.3,4583.2,0.001]
[1756281195319,0.7521,4583.3,4583.2,0.001]
[1756281195650,0.7513,4583.3,4583.2,0.001]
[1756281196032,4.4833,4583.3,4583.2,0.001]
[1756281198440,4.4823,4583.3,4583.2,0.001]
[1756281200341,1.7924,4583.3,4583.2,0.001]
[1756281200727,1.4823,4583.3,4583.2,0.001]
[1756281200932,0.1088,4583.5,4583.2,0.001]
[1756281201341,3.728,4583.4,4583.2,0.001]
[1756281201773,3.727,4583.3,4583.2,0.001]
[1756281202125,3.727,4583.3,4583.2,0.2996]
[1756281202528,4.4791,4583.3,4583.2,0.001]
[1756281203054,4.0371,4583.3,4583.2,0.001]
[1756281205245,0.727,4583.3,4583.2,0.001]